Workbook

Sheet 硕士
A1: 附件
A2: 汕头职业技术学院2021年公开招聘硕士研究生（第一批）总成绩合格人选和入围体检人选名单
A3: 序号 | B3: 主管 部门 | C3: 用人 单位 | D3: 招聘岗位 | E3: 岗位 类别 | F3: 招聘 名额 | G3: 姓名 | H3: 面试 成绩 (占50%) | I3: 专业试讲 (考核)成绩 (占50%) | J3: 总成绩 | K3: 排名 | L3: 是否合格 | M3: 是否入围体检
A4: 1 | B4: 汕头 职业 技术 学院 | C4: 汕头 职业 技术 学院 | D4: 政治辅导员 | E4: 专业技术岗位 | F4: 2 | G4: 王志光 | H4: 89.20 | I4: 89.60 | J4: =(H4+I4)/2 -> 89.40 | K4: 1 | L4: 是 | M4: 是
A5: 2 | G5: 廖铮 | H5: 89.00 | I5: 87.80 | J5: =(H5+I5)/2 -> 88.40 | K5: 2 | L5: 是 | M5: 是
A6: 3 | G6: 黄翔 | H6: 87.20 | I6: 81.80 | J6: =(H6+I6)/2 -> 84.50 | K6: 3 | L6: 是 | M6: 否
A7: 4 | D7: 思政类专任教师 | E7: 专业技术岗位 | F7: 1 | G7: 沈育德 | H7: 89.40 | I7: 90.00 | J7: 89.70 | K7: 1 | L7: 是 | M7: 是
A8: 5 | G8: 黄腾 | H8: 86.60 | I8: 86.80 | J8: 86.70 | K8: 2 | L8: 是 | M8: 否
A9: 6 | D9: 计算机类专任教师 | E9: 专业技术岗位 | F9: 2 | G9: 林思华 | H9: 86.60 | I9: 88.00 | J9: =(H9+I9)/2 -> 87.30 | K9: 1 | L9: 是 | M9: 是
A10: 7 | G10: 赵炜玮 | H10: 84.20 | I10: 87.00 | J10: =(H10+I10)/2 -> 85.60 | K10: 2 | L10: 是 | M10: 是
A11: 8 | G11: 晏燕 | H11: 82.80 | I11: 82.20 | J11: =(H11+I11)/2 -> 82.50 | K11: 3 | L11: 是 | M11: 否
A12: 9 | G12: 曾荣达 | H12: 80.60 | I12: 82.00 | J12: 81.30 | K12: 4 | L12: 是 | M12: 否
A13: 10 | D13: 电气工程类专任教师 | E13: 专业技术岗位 | F13: 1 | G13: 饶鸿江 | H13: 79.80 | I13: 83.60 | J13: 81.70 | K13: 1 | L13: 是 | M13: 是
A14: 11 | D14: 机电类(计算机方向) 专任教师 | E14: 专业技术岗位 | F14: 1 | G14: 林泓宇 | H14: 87.40 | I14: 82.80 | J14: 85.10 | K14: 1 | L14: 是 | M14: 是
A15: 12 | G15: 晏燕 | H15: 80.20 | I15: 83.20 | J15: 81.70 | K15: 2 | L15: 是 | M15: 否
A16: 13 | D16: 环境工程类专任教师 | E16: 专业技术岗位 | F16: 1 | G16: 徐绮扬 | H16: 89.60 | I16: 90.40 | J16: =H16*0.5+I16*0.5 -> 90.00 | K16: 1 | L16: 是 | M16: 是
A17: 14 | G17: 苏跃涵 | H17: 83.80 | I17: 84.60 | J17: =H17*0.5+I17*0.5 -> 84.20 | K17: 2 | L17: 是 | M17: 否
A18: 15 | B18: 汕头 职业 技术 学院 | C18: 汕头 职业 技术 学院 | D18: 体育类专任教师 | E18: 专业技术岗位 | F18: 1 | G18: 王晟楷 | H18: 78.80 | I18: 91.60 | J18: 85.20 | K18: 1 | L18: 是 | M18: 是
A19: 16 | G19: 温方方 | H19: 84.20 | I19: 81.20 | J19: 82.70 | K19: 2 | L19: 是 | M19: 否
A20: 17 | D20: 党委办公室调研科 工作人员 | E20: 管理岗位 | F20: 1 | G20: 陈晓青 | H20: 83.00 | I20: 69.20 | J20: 76.10 | K20: 1 | L20: 是 | M20: 是
A21: 18 | G21: 喻可 | H21: 82.20 | I21: 66.20 | J21: 74.20 | K21: 2 | L21: 是 | M21: 否
A22: 19 | D22: 学院办公室对外交流 合作中心工作人员 | E22: 管理岗位 | F22: 1 | G22: 庄路遥 | H22: 86.20 | I22: 69.40 | J22: 77.80 | K22: 1 | L22: 是 | M22: 是
A23: 20 | G23: 陈婕 | H23: 81.80 | I23: 64.40 | J23: 73.10 | K23: 2 | L23: 是 | M23: 否
A24: 21 | D24: 教务处工作人员 | E24: 管理岗位 | F24: 1 | G24: 蔡炳彧 | H24: 93.80 | I24: 89.40 | J24: 91.60 | K24: 1 | L24: 是 | M24: 是
A25: 22 | G25: 何雨琴 | H25: 88.40 | I25: 86.20 | J25: 87.30 | K25: 2 | L25: 是 | M25: 否
A26: 23 | D26: 总务处工作人员 | E26: 管理岗位 | F26: 1 | G26: 徐跃伦 | H26: 82.60 | I26: 67.00 | J26: =(H26+I26)/2 -> 74.80 | K26: 1 | L26: 是 | M26: 是
A27: 24 | G27: 樊月 | H27: 82.60 | I27: 62.80 | J27: =(H27+I27)/2 -> 72.70 | K27: 2 | L27: 是 | M27: 否
A28: 25 | D28: 计划财务处工作人员 | E28: 管理岗位 | F28: 1 | G28: 黄可立 | H28: 87.00 | I28: 68.80 | J28: =(H28+I28)/2 -> 77.90 | K28: 1 | L28: 是 | M28: 是
A29: 26 | G29: 许琳舒 | H29: 85.20 | I29: 65.40 | J29: 75.30 | K29: 2 | L29: 是 | M29: 否
